Cogmind - Beta 12 @@@ ROGUE MODE // 2023.12.01 @ 23:22:20 Player: Pitt Result: Destroyed by G-34 Mercenary with Small Laser Performance ------------- Evolutions (0) 0 Regions Visited (1) 200 Robots Destroyed (20) 100 Value Destroyed (323) 323 Prototype IDs (0) 0 Alien Tech Used (0) 0 Bonus (0) 0 TOTAL SCORE: 623 Bonus ------- None Cogmind --------- Core Integrity 0/250 Matter 102/300 Energy 160/160 System Corruption 3% Temperature Warning (326) Movement Rolling (100) Location -10/Materials Parts ------- > --- POWER (1) -------- Light Nuclear Core > --- PROPULSION (2) --- Compact Wheel Compact Wheel > --- UTILITY (2) ------ Medium Storage Unit Targeting Computer > --- WEAPON (2) ------- Particle Gun Light Assault Rifle > --- INVENTORY (10) --- Wheel Structural Scanner Terrain Scan Processor Seismic Detector Core Shielding Tractor Beam Spread Laser Peak State ------------ > --- POWER ------------ Light Ion Engine > --- PROPULSION ------- Improved Hover Unit Improved Hover Unit > --- UTILITY ---------- Small Storage Unit Improved Terrain Scanner > --- WEAPON ----------- Medium Laser Improved Light Cannon > --- INVENTORY -------- Light Ion Engine Improved Hover Unit Improved Hover Unit Structural Scanner Terrain Scan Processor Seismic Detector Tractor Beam Mining Laser [Rating: 13] Favorites ----------- Power Light Ion Engine Engine Light Ion Engine Power Core Light Nuclear Core Propulsion Compact Wheel Wheel Compact Wheel Hover Unit Improved Hover Unit Utility Small Storage Unit Device Improved Terrain Scanner Storage Small Storage Unit Processor Targeting Computer Weapon Medium Laser Energy Gun Medium Laser Ballistic Gun Assault Rifle Ballistic Cannon Improved Light Cannon Special Weapon Mining Laser Build | -11 -10 ------- Run | Jun Mat Slots Evolved . | . . Power . | . . Propulsion . | . . Utility . | . . Weapon . | . . Parts Attached 33 | 7 26 Power 5 | 1 4 Engine 4 | 1 3 Core 1 | . 1 Reactor . | . . Propulsion 10 | 2 8 Treads . | . . Leg . | . . Wheel 5 | 2 3 Hover 5 | . 5 Flight . | . . Utility 5 | 2 3 Device 2 | 1 1 Storage 2 | 1 1 Processor 1 | . 1 Hackware . | . . Protection . | . . Artifact . | . . Weapon 13 | 2 11 Energy Gun 4 | 1 3 Energy Cannon . | . . Ballistic Gun 4 | 1 3 Ballistic Cannon 3 | . 3 Launcher . | . . Special Weapon 2 | . 2 Impact Weapon . | . . Slashing Weapon . | . . Piercing Weapon . | . . Special Melee Weapon . | . . Unidentified Prototypes . | . . Parts Lost 8 | . 8 Power 2 | . 2 Propulsion 2 | . 2 Utility 1 | . 1 Weapon 3 | . 3 Highest Loss Streak 3 | . 3 To Critical Strikes . | . . Average Slot Usage (%) 95 | . 95 Engine 12 | . 12 Core 1 | . 1 Wheel 22 | . 22 Hover 5 | . 5 Device 11 | . 11 Storage 14 | . 14 Processor 2 | . 2 Energy Gun 12 | . 12 Ballistic Gun 9 | . 9 Ballistic Cannon 1 | . 1 Special Weapon 1 | . 1 Naked Turns . | . . Heaviest Build 19 | 13 19 Greatest Support 32 | 32 32 Greatest Overweight (x) 2 | . 2 Average Overweight (x) . | . . Largest Inventory Capacity 10 | 8 10 Average Capacity 8 | 7 8 Most Carried 8 | 6 8 Average Carried 6 | 3 7 Final Capacity 10 | 8 10 Final Carried 7 | 6 7 Class Distribution -------------------- 100% | Mutant Dominant Class ---------------- Mutant | -10/Materials Resources | -11 -10 ----------- Run | Jun Mat Matter Collected 478 | 315 163 Remotely . | . . Salvage Created 499 | 132 367 Parts 50 | 20 30 Haulers Intercepted 1 | . 1 Recyclers Shooed 1 | . 1 Parts Field Recycled . | . . Retrieved Matter . | . . Parts Self-Destructed . | . . Prevented . | . . Kills | -11 -10 ------- Run | Jun Mat Combat Hostiles Destroyed 8 | . 8 Guns 7 | . 7 Cannons 1 | . 1 Classes Destroyed 8 | 1 7 Worker 1 | . 1 Builder 2 | . 2 Tunneler 6 | 6 . Hauler 1 | . 1 Recycler 1 | . 1 Watcher 1 | . 1 Swarmer 3 | . 3 Grunt 5 | . 5 Best Kill Streak 3 | 2 3 Combat Bots Only 2 | . 2 Max Kills in Single Turn 2 | 1 2 Gunslinging . | . . Exploded . | . . Melee . | . . Uniques/NPCs Destroyed . | . . Combat | -11 -10 -------- Run | Jun Mat Damage Taken 877 | . 877 Core 260 | . 260 Absorbed by Shields . | . . Core Remaining (%) 100 | 100 . Volleys Fired 67 | 15 52 Largest 2 | 2 2 Hottest 150 | 70 150 Shots Fired 107 | 30 77 Gun 85 | 30 55 Cannon 15 | . 15 Launcher . | . . Special 7 | . 7 Kinetic 54 | 15 39 Thermal 53 | 15 38 Explosive . | . . Electromagnetic . | . . Robot Hit Streak 11 | 5 11 Robot Miss Streak 5 | 4 5 Penetration Max . | . . Secondary Targets . | . . Shots Hit Robots 64 | 15 49 Core Hits 37 | 7 30 Critical Kills . | . . Critical Parts Destroyed . | . . Critical Strikes . | . . Melee Attacks . | . . Impact . | . . Slashing . | . . Piercing . | . . Sneak Attacks . | . . Combat Hostiles . | . . Follow-up Attacks . | . . Damage Inflicted 1008 | 200 808 Guns 650 | 200 450 Cannons 191 | . 191 Explosions 95 | . 95 Melee . | . . Ramming . | . . Kinetic 471 | 87 384 Thermal 442 | 113 329 Explosive 95 | . 95 Electromagnetic . | . . Impact . | . . Slashing . | . . Piercing . | . . Highest Corruption 3 | . 3 Average Corruption 2 | . 2 Corruption Purged . | . . Corruption Blocked . | . . Effects 5 | . 5 Message Errors 1 | . 1 Matter Fused 3 | . 3 Heat Flow Errors 1 | . 1 Overload Shots . | . . Overflow Damage 41 | . 41 Projectiles . | . . Explosions 41 | . 41 Melee . | . . Knockbacks . | . . Impact . | . . Kinetic . | . . Secondary . | . . Self-Inflicted Damage 116 | . 116 Shots 2 | . 2 Rammed . | . . Targets Rammed . | . . Kicked . | . . Crushed . | . . Highest Temperature 320 | 45 320 Average Temperature 43 | 14 52 Received Heat Transfer 381 | . 381 Siege Activations . | . . Robots Corrupted . | . . Combat Hostiles . | . . Parts Fried . | . . Impact Corruptions . | . . Robots Melted . | . . Combat Hostiles . | . . Parts Melted . | . . Heat Transferred 1101 | 333 768 Parts Sabotaged . | . . Parts Stolen . | . . Parts Stripped . | . . Power Chain Reactions . | . . Missiles Intercepted . | . . Alert | -11 -10 ------- Run | Jun Mat Peak Influence 289 | 30 289 Initial 19 | . 19 Average 58 | 16 66 Maximum Alert Level 1 | . 1 Low Security (%) 94 | 100 92 Level 1 5 | . 7 Level 2 . | . . Level 3 . | . . Level 4 . | . . Level 5 . | . . High Security . | . . Max Security . | . . Squads Dispatched 1 | . 1 Investigation 1 | . 1 Extermination . | . . Reinforcement . | . . Assault . | . . Garrison . | . . Intercept . | . . Searches Triggered . | . . Construction Impeded . | . . Haulers Reinforced . | . . Active Scanning Responses . | . . Cargo Convoy Interrupts . | . . Stealth | -11 -10 --------- Run | Jun Mat Distress Signals 1 | . 1 Communications Jammed . | . . Distress Signals . | . . Times Spotted 17 | . 17 Peak Tracking Total 4 | . 4 Tactical Retreats 3 | . 3 Traps | -11 -10 ------- Run | Jun Mat Traps Triggered 5 | . 5 Indirectly . | . . Trap Hack Attempts . | . . Triggered . | . . Disarmed . | . . Reprogrammed . | . . Reused . | . . Traps Extracted . | . . Installed . | . . Triggered . | . . Machines | -11 -10 ---------- Run | Jun Mat Machines Disabled 2 | . 2 Max in Single Turn 2 | . 2 Machines Repaired . | . . Machines Sabotaged . | . . Overloaded Fab Kills . | . . Hacking | -11 -10 --------- Run | Jun Mat Machines Accessed 5 | . 5 Terminals 5 | . 5 Fabricators . | . . Repair Stations . | . . Recycling Units . | . . Scanalyzers . | . . Garrison Access . | . . Total Hacks 16 | . 16 Successful 7 | . 7 Failed 9 | . 9 Catastrophic 1 | . 1 Database Lockouts . | . . Manual 13 | . 13 Terminals 16 | . 16 Fabricators . | . . Repair Stations . | . . Recycling Units . | . . Scanalyzers . | . . Garrison Access . | . . Terminal Hacks 4 | . 4 Terminal Index 1 | . 1 Alert Level 1 | . 1 Locate Traps 1 | . 1 Reinforcement Status 1 | . 1 Fabricator Hacks . | . . Repair Station Hacks . | . . Recycling Unit Hacks . | . . Scanalyzer . | . . Garrison Access Hacks . | . . Unauthorized Hacks 3 | . 3 Terminals 3 | . 3 Track 1 | . 1 Botnet 1 | . 1 Operators 1 | . 1 Fabricators . | . . Repair Stations . | . . Recycling Units . | . . Scanalyzers . | . . Garrison Access . | . . Data Cores Recovered . | . . Used . | . . Hacking Detections 5 | . 5 Full Trace Events 1 | . 1 Feedback Events . | . . Feedback Blocked . | . . Robot Schematics Acquired . | . . Robots Built . | . . Authchips . | . . Time . | . . Total Robot Build Rating . | . . Part Schematics Acquired . | . . Parts Built . | . . Authchips . | . . Time . | . . Total Part Build Rating . | . . Parts Repaired . | . . Time . | . . Parts Recycled . | . . Recycled Matter . | . . Retrieved Matter . | . . Retrieved Components . | . . Parts Scanalyzed . | . . Part Schematics Acquired . | . . Parts Damaged . | . . Bothacking | -11 -10 ------------ Run | Jun Mat Used RIF Installer . | . . Robots Hacked . | . . Non-combat . | . . Combat . | . . Robot Hacks Applied . | . . Relay Couplers Released . | . . Fabnet Peak Effective % . | . . Robots Rewired . | . . Allies Hacked . | . . Hacks Repelled . | . . Allies | -11 -10 -------- Run | Jun Mat Total Allies . | . . Largest Group . | . . Highest-Rated Group . | . . Highest-Rated Ally . | . . Total Orders . | . . Ally Attacks . | . . Total Damage . | . . Kills . | . . Allies Corrupted . | . . Allies Melted . | . . Intel | -11 -10 ------- Run | Jun Mat Robot Analysis Total . | . . Derelict Logs Recovered . | . . Drone Launches . | . . Drone Recoveries . | . . Exploration | -11 -10 ------------- Run | Jun Mat Turns Passed 1525 | 240 1285 Spaces Moved 665 | 169 496 Core 7 | 6 1 Treads . | . . Legs . | . . Wheels 460 | 163 297 Hover 198 | . 198 Flight . | . . Fastest Speed 50 | 50 56 Average Speed 88 | 98 85 Slowest Speed 180 | 100 180 Overloaded Moves . | . . Propulsion Burnouts . | . . Robots Hopped . | . . Cave-ins Triggered . | . . Exploration Rate (%) 32 | 4 61 Regions Visited 1 Branch Regions . Pre-discovered Areas . | . . Known Exits Taken . | . . Unknown Exits Taken 1 | 1 . Scrap Searched . | . . Spaces Dug 2 | . 2 Terrain Destroyed 54 | . 54 Melee . | . . Projectile 3 | . 3 AOE 51 | . 51 Terrain Rammed . | . . Walls Destroyed . | . . Machines Disabled . | . . Actions | -11 -10 --------- Run | Jun Mat Total 1476 | 209 1267 Wait 685 | 13 672 Move 664 | 168 496 Hop . | . . Pick Up 13 | 6 7 Fast Attach 22 | 7 15 Attach 5 | . 5 Detach 3 | . 3 Swap 6 | . 6 Drop 11 | . 11 Fire 67 | 15 52 Melee . | . . Ram . | . . Kick . | . . Crush . | . . Escape Stasis . | . . Rewire . | . . Trap . | . . Miscellaneous . | . . Route ------- -11/Junkyard -10/Materials (discovered 2 exits: [*Min x2]) History --------- Turn | Location | Event 2 | -11/Junkyard | Met Revision 17 23 | -11/Junkyard | Discovered new exit (range 16) 241 | -11/Junkyard | Entered Materials 318 | -10/Materials | Build established: Mutant 593 | -10/Materials | Discovered new exit (range 12) 1267 | -10/Materials | Lost 3 parts (1n1u1w) 1322 | -10/Materials | Core integrity fell below 50% 1401 | -10/Materials | Core integrity fell below 20% 1418 | -10/Materials | Discovered new exit (range 7) 1526 | -10/Materials | Destroyed by G-34 Mercenary with Small Laser Last Messages --------------- 01472_ Connecting with Terminal... >>Alert(Check) Current Alert Level: Low Security >>Traps(Locate) Found 2 traps in 1 array: 2x Explosive Trap Map updated. >>Trojan(Botnet) Trojan loaded successfully. Testing... Terminal linked with 0 systems. Awaiting botnet instructions. >>Trojan(Operators) Trojan loaded successfully. Testing... Operator tracking enabled and active. 01472_ ALERT: Suspicious activity at Terminal M007. Dispatching Investigation squad. 01518_ System corrupted: Matter fused (-5). 01519_ Mining Laser destroyed. Map ----- +----------------------------------------------------+ | ## # # # # < #?????? | | ## # # # # #?????? | | ### + # # # #?????? | | #?# # # # ## #??????? | | ??# # #? # ### ######### | | ?###+## ####+### # = ! # | | ## = + # | | !== = # # | | ## = u = % # """ # | | ##+##########+####+###### """"" # | | % ### [==# #?# """"" # | | ## ""* # """#?# """"" # | | # "T # """#?# """ # | | # "" # """#?# # | | # # #?# ! !# | | # # #?# # | | # ###"############## | | ######### #????????? | | #???????# """ #????????? | | ## #??????# "T" ########## | | ## ###??????# # ? | | ?# ######????????####+### """ ? | | ## ####???????????# # """ ? | | ##+####???????????# ; """ # | | ! ##???????????# gg # | | ##???????????# #@ """ # | | """ ##???????????# # """ # | | """ ##???????????### ### """ # | | """ ##?????????????# #?# ? | | ##?????????????# #?#########? | | +######?????????????# ???????????? | | ###?????????????# ???????????? | | ##??????????????# ???????????? | | ?????????? ???????????? | | #+########?????????? ???????????? | | ########?????????? ???????????? | | ???????????????????? ???????????? | | ????????????????????#????????????? | | ?????????????????????????????????? | | ?????????????????????????????????? | | ???????????????^?????????????????? | | ???????????????^?????????????????? | | ?????????????????????????????????? | | ?????????????????????????????????? | | ?????????????????????????????????? | | ?????????????????????????????????? | | ?????????????????????????????????? | | ?????????????????????????????????? | | ?????????????????????????????????? | | ?????????????????????????????????? | +----------------------------------------------------+ Best States ------------- Heat Dissipation 25 Energy Generation 14 Energy Capacity 160 Matter Stores 300 Matter Capacity 300 Sight Range 16 Terrain Scan Range 16 Terrain Scan Density 10 Evasion (%) 53 Targeting Accuracy 5 Item Schematics ----------------- None Robot Schematics ------------------ None Fabricated ------------ Nothing Alien Tech Used ----------------- None Achievements -------------- None Challenges ------------ None Game ------ Seed ScanNeutronSuite Manual? 0 Play Time 00:15:57 Cumulative 182.1 hours Start 2023.12.01 @ 23:09:01 End 2023.12.01 @ 23:22:20 Sessions 1 Manual Loads 0 Difficulty Rogue Special Mode None Game No. 277 Rogue 277 Adventurer 0 Explorer 0 Win Type - Total 0 Types 0/0/0/0/0/0/0/0/0 Lore% 51 Gallery% 59 Achievement% 40 Wizard Run 0 Options --------- ASCII 0 Keyboard 0 Movement Mouse Keybinds 0 Fullscreen 1 Font 12/Smallcaps Map View 83x54 Tactical HUD 1 Map Filters NONE Filters NONE Steam 1 RUN: c0bb6f31-1d62-4bdf-bcc7-3bf0c49ccf2e